fUST/lending_fUST_20250422
["ID","MTS","AMOUNT","RATE_DAILY","PERIOD"]
[358640879,1745329847237,-500.0,0.00021917,2]
[358640880,1745329847248,-500.0,0.00021917,2]
[358640881,1745329847257,-302.06863733,0.00021917,2]
[358640882,1745329847271,-197.93136267,0.00021917,2]
[358640883,1745329847281,-500.0,0.00021917,2]
[358640884,1745329847291,-559.68813266,0.00021917,2]
[358640885,1745329847302,-500.0,0.00021917,2]
[358640886,1745329847312,-500.0,0.00021917,2]
[358640887,1745329847321,-500.0,0.00021917,2]
[358640888,1745329847331,-595.62,0.00021917,2]
[358640889,1745329847341,-895.05,0.00021917,2]
[358640890,1745329847350,-500.0,0.00021917,2]
[358640891,1745329847361,-500.0,0.00021917,2]
[358640892,1745329847371,-500.0,0.00021917,2]
[358640893,1745329847381,-500.0,0.00021917,2]
[358640894,1745329847391,-500.0,0.00021917,2]
[358640895,1745329847401,-500.0,0.00021917,2]
[358640896,1745329847411,-500.0,0.00021917,2]
[358640897,1745329847421,-500.0,0.00021917,2]
[358640898,1745329847431,-500.0,0.00021917,2]
[358640899,1745329847441,-2475.82,0.00021917,2]
[358640900,1745329847451,-1262.13,0.00021917,2]
[358640901,1745329847461,-500.0,0.00021917,2]
[358640902,1745329847471,-500.0,0.00021917,2]
[358640903,1745329847481,-500.0,0.00021917,2]
[358640904,1745329847490,-4725.75,0.00021917,2]
[358640905,1745329847500,-500.0,0.00021917,2]
[358640906,1745329847510,-585.28,0.00021917,2]
[358640907,1745329847519,-500.0,0.00021917,2]
[358640908,1745329847529,-500.0,0.00021917,2]
[358640909,1745329847539,-500.0,0.00021917,2]
[358640910,1745329847549,-500.0,0.00021917,2]
[358640911,1745329847561,-500.0,0.00021917,2]
[358640912,1745329847571,-1605.63,0.00021917,2]
[358640913,1745329847581,-500.0,0.00021917,2]
[358640914,1745329847591,-500.0,0.00021917,2]
[358640915,1745329847601,-433.65,0.00021917,2]
[358640916,1745329847613,-752.86,0.00021917,2]
[358640917,1745329847623,-583.52,0.00021917,2]
[358640918,1745329847633,-553.84,0.00021917,2]
[358640919,1745329847643,-500.0,0.00021917,2]
[358640920,1745329847652,-500.0,0.00021917,2]
[358640921,1745329847661,-500.0,0.00021917,2]
[358640922,1745329847672,-500.37353793,0.00021917,2]
[358640923,1745329847682,-3447.0,0.00021917,2]
[358640924,1745329847691,-889.65,0.00021917,2]
[358640925,1745329847701,-500.0,0.00021917,2]
[358640926,1745329847711,-582.61,0.00021917,2]
[358640927,1745329847722,-240.22,0.00021917,2]
[358640928,1745329847732,-500.0,0.00021917,2]
[358640929,1745329847743,-180.315553,0.00021918,2]
[358640930,1745329847757,-166.0,0.00021918,2]
[358640931,1745329847772,-151.0,0.00021918,2]
[358640932,1745329847785,-500.0,0.00021918,2]
[358640933,1745329847800,-151.0,0.00021918,2]
[358640934,1745329847813,-198.7371822,0.00021918,2]
[358640935,1745329847824,-500.0,0.00022191,2]
[358640936,1745329847835,-553.93,0.00022191,2]
[358640937,1745329847849,-2034.45,0.00022191,2]
[358640938,1745329847862,-500.0,0.00022191,2]
[358640939,1745329847874,-500.0,0.00022191,2]
[358640940,1745329847887,-500.0,0.00022191,2]
[358640941,1745329847900,-500.0,0.00022191,2]
[358640942,1745329847913,-500.0,0.00022191,2]
[358640943,1745329847926,-500.0,0.00022191,2]
[358640944,1745329847937,-604.0,0.00022191,2]
[358640945,1745329847951,-500.0,0.00022191,2]
[358640946,1745329847966,-500.0,0.00022191,2]
[358640947,1745329847980,-174.05940911,0.00022191,2]
[358640948,1745329847994,-500.0,0.00022191,2]
[358640949,1745329848007,-615.0,0.00022191,2]
[358640950,1745329848019,-500.0,0.00022191,2]
[358640951,1745329848032,-913.02,0.00022191,2]
[358640952,1745329848045,-500.0,0.00022191,2]
[358640953,1745329848057,-500.0,0.00022191,2]
[358640954,1745329848068,-500.0,0.00022191,2]
[358640955,1745329848081,-500.0,0.00022191,2]
[358640956,1745329848094,-500.0,0.00022191,2]
[358640957,1745329848108,-500.0,0.00022191,2]
[358640958,1745329848121,-503.97,0.00022191,2]
[358640959,1745329848134,-500.0,0.00022191,2]
[358640960,1745329848145,-500.0,0.00022191,2]
[358640961,1745329848156,-500.0,0.00022191,2]
[358640962,1745329848167,-500.0,0.00022191,2]
[358640963,1745329848179,-1281.92,0.00022191,2]
[358640964,1745329848191,-500.0,0.00022191,2]
[358640965,1745329848202,-500.0,0.00022191,2]
[358640966,1745329848215,-500.0,0.00022191,2]
[358640967,1745329848228,-500.0,0.00022191,2]
[358640968,1745329848240,-630.45,0.00022191,2]
[358640969,1745329848255,-519.06,0.00022191,2]
[358640970,1745329848267,-500.0,0.00022191,2]
[358640971,1745329848281,-500.0,0.00022191,2]
[358640972,1745329848295,-500.0,0.00022191,2]
[358640973,1745329848309,-3223.58,0.00022191,2]
[358640974,1745329848322,-500.0,0.00022191,2]
[358640975,1745329848336,-500.0,0.00022191,2]
[358640976,1745329848350,-500.0,0.00022191,2]
[358640977,1745329848363,-500.0,0.00022191,2]
[358640978,1745329848375,-2445.41,0.00022191,2]
[358640979,1745329848386,-500.0,0.00022191,2]
[358640980,1745329848398,-500.0,0.00022191,2]
[358640981,1745329848428,-392.24,0.00022191,2]
[358640982,1745329848441,-8414.78,0.00022191,2]
[358640983,1745329848454,-500.0,0.00022191,2]
[358640984,1745329848468,-500.0,0.00022191,2]
[358640985,1745329848483,-500.0,0.00022191,2]
[358640986,1745329848495,-500.0,0.00022191,2]
[358640987,1745329848509,-500.0,0.00022191,2]
[358640988,1745329848520,-500.0,0.00022191,2]
[358640989,1745329848531,-500.0,0.00022191,2]
[358640990,1745329848543,-500.0,0.00022191,2]
[358640991,1745329848556,-550.11,0.00022191,2]
[358640992,1745329848568,-500.0,0.00022191,2]
[358640993,1745329848582,-500.0,0.00022191,2]
[358640994,1745329848595,-500.0,0.00022191,2]
[358640995,1745329848607,-222.5240517,0.00022191,2]
[358640996,1745329848624,-500.0,0.00022191,2]
[358640997,1745329848636,-500.0,0.00022191,2]
[358640998,1745329848647,-500.0,0.00022191,2]
[358640999,1745329848658,-500.0,0.00022191,2]
[358641000,1745329848670,-500.0,0.00022191,2]
[358641001,1745329848682,-500.0,0.00022191,2]
[358641002,1745329848693,-500.0,0.00022191,2]
[358641003,1745329848704,-895.05,0.00022191,2]
[358641004,1745329848716,-500.0,0.00022191,2]
[358641005,1745329848729,-500.0,0.00022191,2]
[358641006,1745329848740,-500.0,0.00022191,2]
[358641007,1745329848752,-500.0,0.00022191,2]
[358641008,1745329848763,-500.0,0.00022191,2]
[358641009,1745329848775,-500.0,0.00022191,2]
[358641010,1745329848786,-500.0,0.00022191,2]
[358641011,1745329848798,-2475.82,0.00022191,2]
[358641012,1745329848810,-1262.13,0.00022191,2]
[358641013,1745329848822,-500.0,0.00022191,2]
[358641014,1745329848832,-500.0,0.00022191,2]
[358641015,1745329848844,-500.0,0.00022191,2]
[358641016,1745329848856,-4725.75,0.00022191,2]
[358641017,1745329848869,-500.0,0.00022191,2]
[358641018,1745329848881,-585.28,0.00022191,2]
[358641019,1745329848893,-500.0,0.00022191,2]
[358641020,1745329848905,-500.0,0.00022191,2]
[358641021,1745329848918,-1605.63,0.00022191,2]
[358641022,1745329848929,-500.0,0.00022191,2]
[358641023,1745329848941,-500.0,0.00022191,2]
[358641024,1745329848952,-752.86,0.00022191,2]
[358641025,1745329848967,-583.52,0.00022191,2]
[358641026,1745329848978,-553.84,0.00022191,2]
[358641027,1745329848991,-500.0,0.00022191,2]
[358641028,1745329849003,-500.0,0.00022191,2]
[358641029,1745329849015,-500.0,0.00022191,2]
[358641030,1745329849027,-3447.0,0.00022191,2]
[358641031,1745329849039,-889.65,0.00022191,2]
[358641032,1745329849051,-500.0,0.00022191,2]
[358641033,1745329849063,-394.077219,0.00022191,2]
[358641034,1745329849075,-268.33081743,0.00022335,2]
[358641035,1745329849086,-420.73667954,0.00022357,2]
[358641036,1745329849098,-160.0,0.00022357,2]
[358641037,1745329849109,-160.0,0.00022357,2]
[358641038,1745329849122,-160.0,0.00022357,2]
[358641039,1745329849134,-729.16666667,0.00022357,2]
[358641040,1745329849145,-10107.89293354,0.00022357,2]
[358641043,1745329913953,155.0,0.00045419,30]
[358641054,1745329996276,155.0,0.00045419,30]
[358641057,1745330111737,3000.0,0.000454,120]
[358641058,1745330123820,155.0,0.000454,30]
[358641067,1745330287295,201.883,0.000454,30]
[358641068,1745330349755,500.0,0.000454,30]
[358641069,1745330354352,-293.08426797,0.00020091,2]
[358641070,1745330354374,-162.0252337,0.00021115,2]
[358641071,1745330354397,-300.0,0.00021415,2]
[358641072,1745330354420,-2721.57905427,0.00021816,2]
[358641073,1745330354444,-300.0,0.00021915,2]
[358641074,1745330354466,-46820.31144406,0.00021916,2]
[358641075,1745330396928,1000000.0,0.000454,30]
[358641119,1745330765997,500.0,0.00045412,30]
[358641120,1745330767520,10000.0,0.00016,60]
[358641122,1745330775889,10000.0,0.00016,60]
[358641123,1745330784687,10000.0,0.00016,60]
[358641124,1745330791252,10000.0,0.00016,60]
[358641127,1745330807213,1531.71,0.00016,60]
[358641128,1745330836543,10000.0,0.00016,60]
[358641129,1745330843696,10000.0,0.00016,60]
[358641133,1745330851340,1281.48,0.00016,60]
[358641138,1745330870696,10000.0,0.00016,60]
[358641139,1745330875755,10000.0,0.00016,60]
[358641142,1745330883124,2898.92,0.00016,60]
[358641156,1745331032520,-426.18,0.00020896,2]
[358641157,1745331032532,-80.6253129,0.00020896,2]
[358641158,1745331032542,-300.0,0.00020915,2]
[358641159,1745331032553,-95.2746871,0.00020916,2]
[358641160,1745331032565,-553.83063043,0.00020916,2]
[358641161,1745331032577,-13534.98839031,0.00020916,2]
[358641286,1745331038577,-10715.90629216,0.00020916,2]
[358641289,1745331038587,-293.18206662,0.00021664,2]
[358641290,1745331038599,-2381.38167253,0.00021816,2]
[358641292,1745331038608,-198.70039578,0.00021817,2]
[358641294,1745331038618,-500.0,0.00021916,2]
[358641315,1745331038814,-344.75292236,0.00021916,2]
[358641317,1745331038825,-500.0,0.00021916,2]
[358641318,1745331038836,-645.0,0.00021916,2]
[358641319,1745331038846,-500.0,0.00021916,2]
[358641320,1745331038857,-500.0,0.00021916,2]
[358641321,1745331038867,-500.0,0.00021916,2]
[358641322,1745331038878,-500.0,0.00021916,2]
[358641323,1745331038888,-500.0,0.00021916,2]
[358641324,1745331038898,-500.0,0.00021916,2]
[358641325,1745331038908,-500.0,0.00021916,2]
[358641326,1745331038920,-500.0,0.00021916,2]
[358641327,1745331038930,-500.0,0.00021916,2]
[358641328,1745331038940,-500.0,0.00021916,2]
[358641329,1745331038950,-500.0,0.00021916,2]
[358641330,1745331038960,-500.0,0.00021916,2]
[358641331,1745331038969,-500.0,0.00021916,2]
[358641332,1745331038979,-500.0,0.00021916,2]
[358641333,1745331038989,-500.0,0.00021916,2]
[358641334,1745331038999,-390.77785999,0.00021916,2]
[358641335,1745331039009,-500.0,0.00021916,2]
[358641336,1745331039019,-500.0,0.00021916,2]
[358641337,1745331039028,-500.0,0.00021916,2]
[358641338,1745331039039,-500.0,0.00021916,2]
[358641339,1745331039050,-500.0,0.00021916,2]
[358641341,1745331039060,-500.0,0.00021916,2]
[358641342,1745331039071,-500.0,0.00021916,2]
[358641344,1745331039081,-500.0,0.00021916,2]
[358641346,1745331039090,-500.0,0.00021916,2]
[358641348,1745331039100,-300.0,0.00021916,2]
[358641350,1745331039111,-500.0,0.00021917,2]
[358641352,1745331039121,-500.0,0.00021917,2]
[358641354,1745331039132,-500.0,0.00021917,2]
[358641356,1745331039142,-500.0,0.00021917,2]
[358641358,1745331039153,-500.0,0.00021917,2]
[358641360,1745331039163,-500.0,0.00021917,2]
[358641362,1745331039173,-500.0,0.00021917,2]
[358641364,1745331039182,-500.0,0.00021917,2]
[358641366,1745331039192,-500.0,0.00021917,2]
[358641368,1745331039202,-500.0,0.00021917,2]
[358641371,1745331039212,-500.0,0.00021917,2]
[358641373,1745331039221,-151.32188304,0.00021917,2]
[358641374,1745331039231,-500.0,0.00021917,2]
[358641377,1745331039241,-500.0,0.00021917,2]
[358641379,1745331039251,-500.0,0.00021917,2]
[358641381,1745331039260,-500.0,0.00021917,2]
[358641383,1745331039270,-500.0,0.00021917,2]
[358641385,1745331039280,-418.11835149,0.00021917,2]
[358641387,1745331039290,-522.51,0.00021917,2]
[358641389,1745331039299,-254.94146799,0.00021917,2]
[358641391,1745331039310,-500.0,0.00021917,2]
[358641393,1745331039320,-500.0,0.00021917,2]
[358641395,1745331039331,-500.0,0.00021917,2]
[358641397,1745331039345,-500.0,0.00021917,2]
[358641399,1745331039355,-634.78,0.00021917,2]
[358641401,1745331039366,-500.0,0.00021917,2]
[358641403,1745331039376,-500.0,0.00021917,2]
[358641405,1745331039386,-500.0,0.00021917,2]
[358641407,1745331039396,-500.0,0.00021917,2]
[358641409,1745331039406,-500.0,0.00021917,2]
[358641411,1745331039422,-500.0,0.00021917,2]
[358641413,1745331039433,-500.0,0.00021917,2]
[358641415,1745331039444,-500.0,0.00021917,2]
[358641417,1745331039454,-500.0,0.00021917,2]
[358641419,1745331039464,-500.0,0.00021917,2]
[358641422,1745331039474,-500.0,0.00021917,2]
[358641423,1745331039484,-200.95080609,0.00021917,2]
[358641425,1745331039494,-500.0,0.00021917,2]
[358641428,1745331039504,-500.0,0.00021917,2]
[358641430,1745331039513,-532.67,0.00021917,2]
[358641432,1745331039523,-504.24568967,0.00021917,2]
[358641434,1745331039533,-500.0,0.00021917,2]
[358641436,1745331039543,-500.0,0.00021917,2]
[358641438,1745331039553,-444.06608682,0.00021917,2]
[358641440,1745331039563,-500.0,0.00021917,2]
[358641442,1745331039573,-503.59119997,0.00021917,2]
[358641444,1745331039582,-500.0,0.00021917,2]
[358641446,1745331039592,-510.26611094,0.00021917,2]
[358641448,1745331039601,-500.0,0.00021917,2]
[358641450,1745331039611,-500.0,0.00021917,2]
[358641452,1745331039621,-500.0,0.00021917,2]
[358641454,1745331039630,-243.28,0.00021917,2]
[358641456,1745331039640,-500.0,0.00021917,2]
[358641458,1745331039650,-500.0,0.00021917,2]
[358641460,1745331039659,-500.0,0.00021917,2]
[358641462,1745331039671,-500.0,0.00021917,2]
[358641464,1745331039681,-500.0,0.00021917,2]
[358641466,1745331039691,-500.0,0.00021917,2]
[358641468,1745331039701,-500.0,0.00021917,2]
[358641470,1745331039711,-500.0,0.00021917,2]
[358641472,1745331039722,-526.47,0.00021917,2]
[358641474,1745331039733,-500.0,0.00021917,2]
[358641476,1745331039743,-504.19987783,0.00021917,2]
[358641478,1745331039754,-500.0,0.00021917,2]
[358641480,1745331039764,-500.0,0.00021917,2]
[358641482,1745331039776,-500.0,0.00021917,2]
[358641484,1745331039786,-500.0,0.00021917,2]
[358641486,1745331039796,-500.0,0.00021917,2]
[358641488,1745331039806,-500.0,0.00021917,2]
[358641490,1745331039816,-878.22,0.00021917,2]
[358641492,1745331039825,-500.0,0.00021917,2]
[358641495,1745331039836,-500.0,0.00021917,2]
[358641496,1745331039846,-500.0,0.00021917,2]
[358641498,1745331039856,-500.0,0.00021917,2]
[358641501,1745331039868,-500.0,0.00021917,2]
[358641503,1745331039878,-500.0,0.00021917,2]
[358641505,1745331039889,-367.66820926,0.00021917,2]
[358641507,1745331039904,-133.74380079,0.00021917,2]
[358641509,1745331039916,-312.20850966,0.00021917,2]
[358641511,1745331039928,-289.40486358,0.00021917,2]
[358641513,1745331039939,-500.0,0.00021917,2]
[358641515,1745331039948,-500.0,0.00021917,2]
[358641517,1745331039959,-501.60188421,0.00021917,2]
[358641519,1745331039969,-500.0,0.00021917,2]
[358641521,1745331039979,-500.0,0.00021917,2]
[358641523,1745331039989,-500.0,0.00021917,2]
[358641525,1745331039999,-402.96631046,0.00021917,2]
[358641527,1745331040009,-500.0,0.00021917,2]
[358641530,1745331040019,-500.0,0.00021917,2]
[358641532,1745331040029,-500.0,0.00021917,2]
[358641534,1745331040039,-500.0,0.00021917,2]
[358641536,1745331040049,-500.0,0.00021917,2]
[358641537,1745331040058,-500.0,0.00021917,2]
[358641539,1745331040068,-500.0,0.00021917,2]
[358641542,1745331040078,-500.0,0.00021917,2]
[358641544,1745331040088,-1356.9,0.00021917,2]
[358641546,1745331040097,-634.74074739,0.00021917,2]
[358641548,1745331040107,-500.0,0.00021917,2]
[358641550,1745331040118,-500.0,0.00021917,2]
[358641552,1745331040127,-504.28978164,0.00021917,2]
[358641554,1745331040137,-2363.89,0.00021917,2]
[358641556,1745331040148,-500.0,0.00021917,2]
[358641558,1745331040158,-3371.69,0.00021917,2]
[358641559,1745331040169,-500.0,0.00021917,2]
[358641562,1745331040179,-500.0,0.00021917,2]
[358641564,1745331040189,-500.0,0.00021917,2]
[358641566,1745331040200,-500.0,0.00021917,2]
[358641568,1745331040209,-500.0,0.00021917,2]
[358641570,1745331040221,-500.0,0.00021917,2]
[358641572,1745331040231,-500.0,0.00021917,2]
[358641574,1745331040241,-500.0,0.00021917,2]
[358641576,1745331040252,-500.0,0.00021917,2]
[358641578,1745331040263,-500.0,0.00021917,2]
[358641580,1745331040276,-633.84795498,0.00021917,2]
[358641582,1745331040286,-500.0,0.00021917,2]
[358641584,1745331040296,-500.0,0.00021917,2]
[358641586,1745331040307,-500.0,0.00021917,2]
[358641588,1745331040317,-500.0,0.00021917,2]
[358641590,1745331040327,-501.2563291,0.00021917,2]
[358641592,1745331040343,-500.0,0.00021917,2]
[358641594,1745331040353,-500.0,0.00021917,2]
[358641596,1745331040363,-647.52603563,0.00021917,2]
[358641598,1745331040375,-500.0,0.00021917,2]
[358641600,1745331040385,-500.0,0.00021917,2]
[358641602,1745331040396,-500.0,0.00021917,2]
[358641604,1745331040405,-500.0,0.00021917,2]
[358641606,1745331040416,-500.0,0.00021917,2]
[358641609,1745331040426,-500.0,0.00021917,2]
[358641611,1745331040436,-500.0,0.00021917,2]
[358641613,1745331040446,-500.0,0.00021917,2]
[358641615,1745331040456,-500.0,0.00021917,2]
[358641617,1745331040466,-556.00305879,0.00021917,2]
[358641619,1745331040475,-500.0,0.00021917,2]
[358641621,1745331040485,-501.77784407,0.00021917,2]
[358641623,1745331040496,-530.25,0.00021917,2]
[358641625,1745331040506,-8966.4,0.00021917,2]
[358641627,1745331040516,-501.63691401,0.00021917,2]
[358641629,1745331040527,-500.0,0.00021917,2]
[358641631,1745331040538,-500.0,0.00021917,2]
[358641633,1745331040549,-500.0,0.00021917,2]
[358641635,1745331040559,-500.0,0.00021917,2]
[358641637,1745331040569,-500.0,0.00021917,2]
[358641639,1745331040579,-5.99461906,0.00021917,2]
[358641642,1745331040593,-328.2617113,0.00021917,2]
[358641644,1745331040605,-165.74366964,0.00021917,2]
[358641646,1745331040615,-372.76242901,0.00021917,2]
[358641648,1745331040625,-500.0,0.00021917,2]
[358641650,1745331040634,-503.79091632,0.00021917,2]
[358641652,1745331040644,-500.0,0.00021917,2]
[358641654,1745331040654,-500.0,0.00021917,2]
[358641656,1745331040665,-501.51697049,0.00021917,2]
[358641658,1745331040675,-500.0,0.00021917,2]
[358641660,1745331040686,-500.0,0.00021917,2]
[358641662,1745331040697,-500.0,0.00021917,2]
[358641664,1745331040706,-500.0,0.00021917,2]
[358641666,1745331040716,-500.0,0.00021917,2]
[358641668,1745331040725,-500.0,0.00021917,2]
[358641670,1745331040735,-501.06957214,0.00021917,2]
[358641672,1745331040745,-502.30571358,0.00021917,2]
[358641674,1745331040756,-500.0,0.00021917,2]
[358641676,1745331040766,-500.0,0.00021917,2]
[358641678,1745331040775,-504.54844696,0.00021917,2]
[358641680,1745331040785,-500.0,0.00021917,2]
[358641682,1745331040795,-500.0,0.00021917,2]
[358641684,1745331040804,-500.0,0.00021917,2]
[358641686,1745331040814,-500.0,0.00021917,2]
[358641688,1745331040824,-500.0,0.00021917,2]
[358641690,1745331040834,-503.07774411,0.00021917,2]
[358641692,1745331040844,-500.0,0.00021917,2]
[358641694,1745331040854,-500.0,0.00021917,2]
[358641696,1745331040864,-500.0,0.00021917,2]
[358641698,1745331040874,-500.0,0.00021917,2]
[358641700,1745331040883,-500.0,0.00021917,2]
[358641702,1745331040893,-583.19,0.00021917,2]
[358641704,1745331040903,-500.0,0.00021917,2]
[358641706,1745331040913,-211.72443545,0.00021917,2]
[358641708,1745331040927,-288.27556455,0.00021917,2]
[358641710,1745331040938,-1411.54,0.00021917,2]
[358641712,1745331040947,-500.0,0.00021917,2]
[358641714,1745331040959,-500.0,0.00021917,2]
[358641716,1745331040968,-501.65465623,0.00021917,2]
[358641718,1745331040978,-500.0,0.00021917,2]
[358641720,1745331040988,-500.0,0.00021917,2]
[358641722,1745331040998,-504.2932051,0.00021917,2]
[358641724,1745331041008,-500.0,0.00021917,2]
[358641726,1745331041018,-500.0,0.00021917,2]
[358641728,1745331041028,-500.0,0.00021917,2]
[358641730,1745331041037,-2636.67,0.00021917,2]
[358641732,1745331041047,-500.0,0.00021917,2]
[358641734,1745331041056,-500.0,0.00021917,2]
[358641736,1745331041065,-500.0,0.00021917,2]
[358641738,1745331041075,-500.0,0.00021917,2]
[358641740,1745331041084,-500.0,0.00021917,2]
[358641742,1745331041094,-500.0,0.00021917,2]
[358641744,1745331041103,-500.00000003,0.00021917,2]
[358641746,1745331041113,-500.0,0.00021917,2]
[358641748,1745331041123,-500.0,0.00021917,2]
[358641750,1745331041132,-500.0,0.00021917,2]
[358641752,1745331041142,-500.0,0.00021917,2]
[358641754,1745331041151,-500.0,0.00021917,2]
[358641756,1745331041161,-500.0,0.00021917,2]
[358641758,1745331041173,-500.0,0.00021917,2]
[358641760,1745331041183,-500.0,0.00021917,2]
[358641762,1745331041193,-500.0,0.00021917,2]
[358641764,1745331041202,-500.0,0.00021917,2]
[358641766,1745331041212,-500.0,0.00021917,2]
[358641768,1745331041222,-501.93523203,0.00021917,2]
[358641770,1745331041232,-500.0,0.00021917,2]
[358641772,1745331041242,-500.0,0.00021917,2]
[358641774,1745331041254,-2051.41,0.00021917,2]
[358641776,1745331041264,-500.0,0.00021917,2]
[358641778,1745331041274,-500.0,0.00021917,2]
[358641780,1745331041284,-500.0,0.00021917,2]
[358641783,1745331041294,-528.45935928,0.00021917,2]
[358641785,1745331041304,-500.0,0.00021917,2]
[358641787,1745331041314,-500.0,0.00021917,2]
[358641789,1745331041324,-500.0,0.00021917,2]
[358641791,1745331041334,-1220.06,0.00021917,2]
[358641793,1745331041347,-500.0,0.00021917,2]
[358641795,1745331041357,-500.0,0.00021917,2]
[358641797,1745331041366,-520.10718635,0.00021917,2]
[358641799,1745331041377,-500.0,0.00021917,2]
[358641801,1745331041386,-500.0,0.00021917,2]
[358641803,1745331041396,-500.0,0.00021917,2]
[358641805,1745331041406,-500.0,0.00021917,2]
[358641807,1745331041419,-500.0,0.00021917,2]
[358641809,1745331041429,-500.0,0.00021917,2]
[358641811,1745331041439,-500.0,0.00021917,2]
[358641813,1745331041449,-500.0,0.00021917,2]
[358641815,1745331041459,-500.0,0.00021917,2]
[358641817,1745331041468,-500.0,0.00021917,2]
[358641819,1745331041478,-500.0,0.00021917,2]
[358641821,1745331041487,-4559.92,0.00021917,2]
[358641823,1745331041497,-501.43301874,0.00021917,2]
[358641825,1745331041506,-500.0,0.00021917,2]
[358641827,1745331041516,-500.0,0.00021917,2]
[358641828,1745331041524,-260.47010886,0.00021917,2]
[358641830,1745331041534,-500.0,0.00021917,2]
[358641832,1745331041543,-500.0,0.00021917,2]
[358641834,1745331041553,-500.0,0.00021917,2]
[358641836,1745331041563,-500.0,0.00021917,2]
[358641838,1745331041572,-500.0,0.00021917,2]
[358641840,1745331041582,-500.0,0.00021917,2]
[358641842,1745331041592,-500.0,0.00021917,2]
[358641844,1745331041602,-500.0,0.00021917,2]
[358641846,1745331041612,-500.0,0.00021917,2]
[358641848,1745331041622,-500.0,0.00021917,2]
[358641850,1745331041631,-500.0,0.00021917,2]
[358641852,1745331041642,-500.0,0.00021917,2]
[358641854,1745331041651,-500.0,0.00021917,2]
[358641856,1745331041661,-500.0,0.00021917,2]
[358641858,1745331041672,-500.0,0.00021917,2]
[358641860,1745331041683,-500.0,0.00021917,2]
[358641862,1745331041692,-513.56409681,0.00021917,2]
[358641863,1745331041701,-501.88088184,0.00021917,2]
[358641865,1745331041711,-588.16,0.00021917,2]
[358641868,1745331041722,-500.0,0.00021917,2]
[358641869,1745331041731,-500.0,0.00021917,2]
[358641871,1745331041741,-506.26261494,0.00021917,2]
[358641873,1745331041751,-500.0,0.00021917,2]
[358641875,1745331041761,-500.0,0.00021917,2]
[358641877,1745331041771,-494.82033752,0.00021917,2]
[358641879,1745331041781,-500.0,0.00021917,2]
[358641881,1745331041791,-291.8598602,0.00021917,2]
[358641884,1745331041804,-434.1101398,0.00021917,2]
[358641886,1745331041814,-565.77,0.00021917,2]
[358641888,1745331041824,-495.89962436,0.00021917,2]
[358641890,1745331041834,-456.55859662,0.00021917,2]
[358641892,1745331041848,-43.44140338,0.00021917,2]
[358641894,1745331041858,-500.0,0.00021917,2]
[358641896,1745331041868,-500.0,0.00021917,2]
[358641898,1745331041878,-501.08013338,0.00021917,2]
[358641900,1745331041888,-500.0,0.00021917,2]